bitfinex-derivatives/quotes_BTCF0:USTF0_20250902
["timestamp","ask_amount","ask_price","bid_price","bid_amount"]
[1756821472712,0.46953588,111170.0,111150.0,0.21769712]
[1756821472913,0.46953588,111170.0,111160.0,0.13248246]
[1756821473218,0.46953588,111170.0,111160.0,0.26027246]
[1756821473420,0.50793588,111170.0,111160.0,0.18232]
[1756821473916,0.50693588,111170.0,111150.0,0.14180712]
[1756821474109,0.50693588,111170.0,111150.0,0.39912712]
[1756821474110,0.50748,111160.0,111150.0,0.39912712]
[1756821474419,1.572723,111160.0,111150.0,0.07827893]
[1756821474608,1.572723,111160.0,111150.0,0.00033]
[1756821474808,1.66366651,111160.0,111150.0,0.00033]
[1756821475018,1.6636664,111160.0,111150.0,0.00033]
[1756821475319,0.2472884,111160.0,111150.0,0.21533]
[1756821476019,0.1006084,111160.0,111150.0,0.21533]
[1756821476225,0.03,111160.0,111150.0,0.21533]
[1756821476518,0.03,111160.0,111150.0,0.80533]
[1756821476915,0.033,111160.0,111150.0,1.16613]
[1756821477119,0.033,111160.0,111150.0,0.82613]
[1756821477511,1.174043,111160.0,111150.0,0.21533]
[1756821477710,1.174043,111160.0,111150.0,0.00033]
[1756821477919,1.424043,111160.0,111150.0,0.00033]
[1756821478118,1.421043,111160.0,111150.0,0.00033]
[1756821478319,0.3858,111160.0,111150.0,0.21533]
[1756821478517,0.3858,111160.0,111150.0,0.46533]
[1756821478717,0.3858,111160.0,111150.0,0.21533]
[1756821478919,0.3878,111160.0,111150.0,0.21533]
[1756821479314,0.3868,111160.0,111150.0,0.21533]
[1756821480218,0.3868,111160.0,111150.0,0.13944]
[1756821480415,1.182043,111160.0,111150.0,0.13944]
[1756821480616,1.183043,111160.0,111150.0,0.00033]
[1756821481119,1.433043,111160.0,111150.0,0.00033]
[1756821481418,1.429043,111160.0,111150.0,0.00033]
[1756821481607,1.431043,111160.0,111150.0,0.00033]
[1756821481812,1.070243,111160.0,111150.0,0.00033]
[1756821482112,1.789843,111160.0,111150.0,0.00033]
[1756821482316,1.793843,111160.0,111150.0,0.00033]
[1756821483628,1.543843,111160.0,111150.0,0.00033]
[1756821484218,1.0886,111160.0,111150.0,0.21533]
[1756821484424,0.7278,111160.0,111150.0,0.21533]
[1756821484921,0.367,111160.0,111150.0,0.58533]
[1756821485131,0.027,111160.0,111150.0,1.651373]
[1756821485616,0.007,111160.0,111150.0,1.7413325]
[1756821486321,0.3608,111200.0,111150.0,1.2860895]
[1756821486523,0.4108,111200.0,111190.0,0.186]
[1756821487522,0.866043,111200.0,111190.0,0.186]
[1756821487923,0.4108,111200.0,111190.0,0.186]
[1756821488429,0.4128,111200.0,111190.0,0.186]
[1756821489332,0.4148,111200.0,111190.0,0.186]
[1756821489516,0.4208,111200.0,111190.0,0.186]
[1756821490027,0.4248,111200.0,111190.0,0.186]
[1756821490524,0.880043,111200.0,111190.0,0.10513]
[1756821490725,0.880043,111200.0,111190.0,0.05518]
[1756821490926,0.4248,111200.0,111190.0,0.10513]
[1756821491135,1.430043,111200.0,111170.0,0.12812033]
[1756821491425,0.816043,111180.0,111160.0,0.186]
[1756821491622,0.816043,111170.0,111150.0,0.21901]
[1756821491826,0.455243,111160.0,111150.0,0.21901]
[1756821492029,0.3608,111160.0,111150.0,0.21901]
[1756821492217,0.3608,111160.0,111150.0,0.00033]
[1756821492419,1.376043,111160.0,111150.0,0.00033]
[1756821493616,1.378043,111160.0,111150.0,0.00033]
[1756821494025,1.38993505,111160.0,111150.0,0.00033]
[1756821494224,1.13993505,111160.0,111150.0,0.00033]
[1756821494426,0.39469205,111160.0,111150.0,0.21897]
[1756821494727,0.022,111160.0,111150.0,0.82977]
[1756821494921,0.022,111160.0,111150.0,0.46897]
[1756821495121,0.3828,111160.0,111150.0,0.46897]
[1756821495826,0.3888,111160.0,111150.0,0.46897]
[1756821496223,0.3898,111160.0,111150.0,0.46897]
[1756821499220,0.029,111160.0,111150.0,0.46897]
[1756821500826,0.48813559,111160.0,111150.0,0.46897]
[1756821501032,0.48813559,111160.0,111150.0,0.1381]
[1756821501033,0.84893559,111160.0,111150.0,0.1381]
[1756821501334,1.43893559,111160.0,111150.0,0.00033]
[1756821501634,1.43893559,111160.0,111150.0,0.05551]
[1756821501931,1.43893559,111160.0,111150.0,0.1381]
[1756821502236,0.9798,111160.0,111150.0,0.1381]
[1756821502432,1.43893559,111160.0,111150.0,0.21897]
[1756821503437,0.9798,111160.0,111150.0,0.21897]
[1756821503625,1.43893559,111160.0,111150.0,0.1381]
[1756821504027,1.43893559,111160.0,111150.0,0.00033]
[1756821504232,1.89807118,111160.0,111150.0,0.00033]
[1756821504827,1.43893559,111160.0,111150.0,0.00033]
[1756821505232,1.46102958,111160.0,111150.0,0.00033]
[1756821505429,1.00189399,111160.0,111150.0,0.08815]
[1756821505738,0.87102958,111160.0,111150.0,0.21897]
[1756821506339,0.84893559,111160.0,111150.0,0.21897]
[1756821506644,0.87103265,111160.0,111150.0,0.21897]
[1756821507135,0.87103265,111160.0,111150.0,0.1381]
[1756821507640,0.87103265,111160.0,111150.0,0.10546]
[1756821507939,0.41189706,111160.0,111150.0,0.21897]
[1756821508642,0.3898,111160.0,111150.0,0.21897]
[1756821509139,0.41189964,111160.0,111150.0,0.21897]
[1756821509936,0.05109964,111160.0,111150.0,0.21897]
[1756821510137,0.029,111160.0,111150.0,0.21897]
[1756821510337,0.48813559,111160.0,111150.0,0.21897]
[1756821510738,0.029,111160.0,111150.0,1.28890559]
[1756821510935,0.029,111160.0,111150.0,1.06977]
[1756821513043,0.009,111160.0,111150.0,1.06977]
[1756821513238,0.009,111160.0,111150.0,1.52890559]
[1756821513443,0.009,111160.0,111150.0,1.61886469]
[1756821514335,0.009,111160.0,111150.0,1.1597291]
[1756821514530,0.009,111160.0,111150.0,1.27890559]
[1756821514737,0.009,111160.0,111150.0,0.81977]
[1756821514933,0.02772935,111160.0,111150.0,0.81977]
[1756821515140,0.02972935,111160.0,111150.0,0.81977]
[1756821515348,0.008,111160.0,111150.0,0.81977]
[1756821515736,0.008,111160.0,111150.0,1.27890559]
[1756821516237,0.008,111160.0,111150.0,1.52890559]
[1756821516843,0.008,111160.0,111150.0,1.06977]
[1756821517047,0.004,111160.0,111150.0,1.52890559]
[1756821517248,0.004,111160.0,111150.0,1.06977]
[1756821517940,0.004,111160.0,111150.0,1.07241]
[1756821518533,0.46313559,111160.0,111150.0,0.82241]
[1756821518743,0.71313559,111160.0,111150.0,0.46161]
[1756821518938,0.71313559,111160.0,111150.0,0.82241]
[1756821519144,0.004,111160.0,111150.0,0.82241]
[1756821519442,0.46313559,111160.0,111150.0,0.4577]
[1756821519643,1.07393559,111160.0,111150.0,0.38074]
[1756821519944,1.08393559,111160.0,111150.0,0.24033]
[1756821520147,1.44535141,111160.0,111150.0,0.00033]
[1756821520337,1.88307118,111160.0,111150.0,0.00033]
[1756821520534,1.90448776,111160.0,111150.0,0.00033]
[1756821522334,0.98621658,111160.0,111150.0,0.00033]
[1756821522648,1.65448776,111160.0,111130.0,0.20496102]
[1756821522838,0.81993559,111140.0,111130.0,0.20496102]
[1756821523039,1.12993559,111140.0,111110.0,0.51053096]
[1756821523243,0.81993559,111130.0,111110.0,0.97830096]
[1756821523443,0.82993559,111130.0,111120.0,0.18473]
[1756821524043,0.01,111130.0,111120.0,0.55002]
[1756821524551,0.01,111130.0,111120.0,0.79002]
[1756821524847,0.3708,111130.0,111120.0,0.18922]
[1756821525045,0.3708,111130.0,111120.0,0.19022]
[1756821525248,0.3708,111130.0,111120.0,0.19222]
[1756821525549,0.82993559,111130.0,111120.0,0.44222]
[1756821525852,0.3708,111130.0,111120.0,0.44222]
[1756821527155,0.3708,111130.0,111120.0,0.44022]
[1756821527451,0.01,111130.0,111120.0,1.05102]
[1756821527642,0.011,111130.0,111120.0,1.50915559]
[1756821527841,0.011,111130.0,111120.0,1.05002]
[1756821528039,0.011,111130.0,111120.0,1.50915559]
[1756821528446,0.011,111130.0,111120.0,1.59913819]
[1756821528653,0.011,111130.0,111120.0,1.61878799]
[1756821528845,0.011,111130.0,111120.0,1.68124987]
[1756821529454,0.001,111130.0,111120.0,2.14038546]
[1756821529952,0.3608,111190.0,111180.0,0.10777]
[1756821530153,0.17,111190.0,111180.0,0.92553]
[1756821530457,0.17,111190.0,111180.0,1.28633]
[1756821530955,0.17,111190.0,111180.0,1.74546559]
[1756821531349,0.17,111190.0,111180.0,1.28633]
[1756821531750,0.81513559,111190.0,111180.0,0.56473]
[1756821532149,0.356,111190.0,111180.0,0.56473]
[1756821532549,0.36,111190.0,111180.0,0.56473]
[1756821532952,0.36,111190.0,111180.0,0.18473]
[1756821533948,0.36,111190.0,111180.0,0.54553]
[1756821534650,0.01,111190.0,111180.0,0.57553]
[1756821534955,0.01,111190.0,111180.0,1.28466559]
[1756821535261,0.01,111190.0,111180.0,1.58466559]
[1756821535653,0.01,111190.0,111180.0,1.67460019]
[1756821535849,0.01,111190.0,111180.0,1.2154646]
[1756821536057,0.01,111190.0,111180.0,1.64711116]
[1756821536354,0.01,111190.0,111180.0,1.18797557]
[1756821536749,0.01,111190.0,111180.0,1.73704576]
[1756821537758,0.00124241,111190.0,111180.0,1.7526876]
[1756821538062,0.00124241,111190.0,111180.0,2.13373578]
[1756821538265,0.01104557,111250.0,111210.0,0.07696]
[1756821538564,0.24104557,111250.0,111240.0,0.41573]
[1756821538766,0.24104557,111250.0,111240.0,0.54553]
[1756821538969,0.23,111250.0,111240.0,0.54553]
[1756821539358,0.23,111250.0,111240.0,0.61915784]
[1756821539559,0.83138459,111270.0,111250.0,0.10808]
[1756821539758,1.13993559,111270.0,111250.0,0.21585]
[1756821540468,0.3608,111260.0,111250.0,0.21585]
[1756821540663,0.4708,111260.0,111250.0,0.21585]
[1756821541370,0.11,111260.0,111250.0,0.21585]
[1756821542370,0.4708,111260.0,111250.0,0.21585]
[1756821542961,0.4718,111260.0,111250.0,0.21585]
[1756821543164,0.4718,111260.0,111250.0,0.22034]
[1756821544275,1.18093559,111260.0,111250.0,0.22034]
[1756821544464,1.18093559,111260.0,111250.0,0.14338]
[1756821544665,1.18693559,111260.0,111250.0,0.14338]
[1756821544873,1.18693559,111260.0,111250.0,0.00449]
[1756821545171,1.07693559,111260.0,111250.0,0.00449]
[1756821546666,0.71613559,111260.0,111250.0,0.00449]
[1756821546966,0.007,111260.0,111250.0,0.20414]
[1756821547166,0.007,111260.0,111250.0,0.56494]
[1756821548167,0.007,111260.0,111250.0,0.20414]
[1756821548872,0.82693559,111260.0,111250.0,0.13147]
[1756821549177,1.45693559,111260.0,111250.0,0.00449]
[1756821549867,0.9978,111260.0,111250.0,0.00449]
[1756821550073,1.04971506,111260.0,111250.0,0.00449]
[1756821550268,1.50885065,111260.0,111250.0,0.00449]
[1756821550774,1.96798624,111260.0,111210.0,0.0975]
[1756821550976,0.81993559,111220.0,111210.0,0.04945]
[1756821551169,0.3608,111240.0,111210.0,0.37]
[1756821551376,0.45913559,111240.0,111230.0,0.17017]
[1756821551778,0.45913559,111250.0,111240.0,0.07267]
[1756821552071,0.006,111260.0,111250.0,0.19965]
[1756821552275,1.18093559,111260.0,111240.0,0.07267]
[1756821552471,0.81993559,111250.0,111240.0,0.04945]
[1756821552981,0.81993559,111250.0,111230.0,0.17017]
[1756821553180,0.45913559,111240.0,111230.0,0.17017]
[1756821554378,0.45913559,111240.0,111220.0,0.45783913]
[1756821554568,0.81993559,111230.0,111220.0,0.00449]
[1756821555281,0.81993559,111230.0,111210.0,0.17017]
[1756821555580,0.81993559,111220.0,111210.0,0.22017]
[1756821557477,0.3628,111230.0,111210.0,0.17017]
[1756821557682,0.82193559,111230.0,111210.0,0.53097]
[1756821558474,0.3628,111230.0,111210.0,0.4583]
[1756821558672,0.3618,111230.0,111220.0,0.17017]
[1756821558976,0.81993559,111230.0,111220.0,0.17017]
[1756821559181,0.81993559,111230.0,111210.0,0.0975]
[1756821559380,0.45913559,111220.0,111210.0,0.17017]
[1756821559575,0.81642184,111230.0,111210.0,0.17017]
[1756821559782,0.81742184,111230.0,111210.0,0.17017]
[1756821560478,0.81942184,111230.0,111210.0,0.17017]
[1756821560875,0.81942184,111230.0,111210.0,0.04945]
[1756821561076,0.81942184,111230.0,111210.0,0.0975]
[1756821561478,0.81942184,111230.0,111210.0,0.17017]
[1756821562477,0.81842184,111230.0,111210.0,0.17017]
[1756821563074,0.45562184,111220.0,111200.0,0.65702286]
[1756821563385,0.45562184,111220.0,111200.0,0.97702286]
[1756821563581,0.45562184,111220.0,111200.0,0.70364214]
[1756821563782,0.81842184,111230.0,111210.0,0.09606928]
[1756821563987,0.3628,111230.0,111210.0,0.21678928]
[1756821564175,0.3628,111230.0,111210.0,0.57758928]
[1756821564488,0.002,111230.0,111220.0,0.17017]
[1756821564881,0.002,111230.0,111220.0,0.21678928]
[1756821565081,0.002,111230.0,111220.0,0.17017]
[1756821565282,0.002,111230.0,111220.0,0.21678928]
[1756821565489,0.3618,111230.0,111220.0,0.21678928]
[1756821565688,0.3608,111230.0,111220.0,0.21678928]
[1756821566277,0.3628,111230.0,111220.0,0.21678928]
[1756821566482,0.3648,111230.0,111220.0,0.17017]
[1756821567186,0.004,111230.0,111220.0,0.17017]
[1756821567488,0.004,111230.0,111220.0,1.14097]
[1756821567791,0.004,111230.0,111220.0,1.13097]
[1756821569182,0.004,111230.0,111220.0,1.58659184]
[1756821569686,0.004,111230.0,111220.0,0.53097]
[1756821569886,0.004,111230.0,111220.0,0.17017]
[1756821573282,0.004,111230.0,111220.0,0.23017]
[1756821574490,0.004,111230.0,111220.0,0.49017]
[1756821574891,0.004,111230.0,111220.0,0.85097]
[1756821579591,0.004,111230.0,111220.0,0.89758928]
[1756821579787,0.004,111230.0,111220.0,0.21678928]
[1756821579987,1.07042184,111230.0,111220.0,0.17017]
[1756821580295,0.6148,111230.0,111220.0,0.17303]
[1756821581990,0.004,111230.0,111220.0,0.17303]
[1756821582897,0.004,111230.0,111220.0,0.21964928]
[1756821584589,0.004,111230.0,111220.0,0.58044928]
[1756821584794,0.004,111230.0,111220.0,0.21964928]
[1756821586092,0.3648,111230.0,111220.0,0.21964928]
[1756821586594,1.07042184,111230.0,111220.0,0.14411928]
[1756821586900,1.07042184,111230.0,111210.0,0.23013928]
[1756821587092,0.3608,111220.0,111210.0,0.18352]
[1756821587399,0.3608,111220.0,111210.0,0.23028176]
[1756821588301,0.37155003,111220.0,111210.0,0.23028176]
[1756821588700,0.3608,111220.0,111210.0,0.23028176]
[1756821589193,0.3618,111220.0,111210.0,0.18352]
[1756821590900,0.3628,111220.0,111210.0,0.18352]
[1756821591899,0.002,111220.0,111210.0,0.43352]
[1756821592396,0.002,111220.0,111210.0,0.4443087]
[1756821592599,0.002,111220.0,111210.0,0.8051087]
[1756821593403,0.002,111220.0,111210.0,0.79432]
[1756821593599,0.002,111220.0,111210.0,0.81432]
[1756821595200,0.002,111220.0,111210.0,0.56432]
[1756821595495,0.002,111220.0,111210.0,1.66985284]
[1756821596296,0.002,111220.0,111210.0,1.57994184]
[1756821597500,0.002,111220.0,111210.0,0.87432]
[1756821597998,0.002,111220.0,111210.0,0.51352]
[1756821598200,0.002,111220.0,111210.0,0.18352]
[1756821598398,0.3608,111230.0,111220.0,0.17903]
[1756821599098,0.3608,111240.0,111230.0,0.07553]
[1756821599298,0.3608,111240.0,111230.0,0.17903]
[1756821600305,0.3608,111240.0,111230.0,0.3535]
[1756821600499,0.05801146,111280.0,111230.0,1.53992184]
[1756821600500,0.81642184,111280.0,111230.0,1.53992184]
[1756821600700,0.17856,111260.0,111250.0,0.4643]
[1756821600904,0.07698,111290.0,111250.0,1.2051]
[1756821601099,0.56933469,111290.0,111280.0,0.4643]
[1756821601295,0.56933469,111290.0,111280.0,0.53983]
[1756821601497,0.14077469,111290.0,111280.0,0.82983]
[1756821601698,0.02077469,111290.0,111280.0,1.62530624]
[1756821602099,0.17690519,111330.0,111320.0,0.17903]
[1756821602301,0.55263297,111330.0,111320.0,0.53983]
[1756821602501,0.04801146,111340.0,111320.0,1.55545184]
[1756821602702,0.07927615,111360.0,111350.0,0.14306]
[1756821602703,0.0151761,111360.0,111350.0,0.14306]
[1756821602899,0.1937361,111360.0,111350.0,0.86466]
[1756821603102,0.1937361,111360.0,111350.0,0.86423]
[1756821603306,0.1937361,111360.0,111350.0,0.85901967]
[1756821603501,0.0151761,111360.0,111350.0,0.85901967]
[1756821603706,0.0151761,111360.0,111350.0,1.22901967]
[1756821603900,0.0151761,111360.0,111350.0,2.02443931]
[1756821604507,0.0151761,111360.0,111350.0,1.47901967]
[1756821604703,0.0151761,111360.0,111350.0,1.93464151]
[1756821604908,0.0106861,111360.0,111350.0,2.02443931]
[1756821605203,0.06410005,111380.0,111370.0,0.13742]
[1756821605406,0.14113166,111390.0,111370.0,1.18902]
[1756821605609,5.161e-05,111390.0,111380.0,0.95384184]
[1756821605905,0.29077005,111400.0,111390.0,0.13736]
[1756821606105,0.05024,111400.0,111390.0,0.86816]
[1756821606310,0.08173005,111400.0,111390.0,0.49816]
[1756821606509,0.08173005,111400.0,111390.0,0.85816]
[1756821606712,0.06557934,111400.0,111390.0,0.85816]
[1756821607102,0.001,111400.0,111390.0,1.10816]
[1756821607301,0.06558088,111400.0,111390.0,1.56378184]
[1756821607607,0.06858088,111400.0,111390.0,1.56378184]
[1756821608006,0.06858088,111400.0,111390.0,1.65354744]
[1756821608203,0.06858088,111400.0,111390.0,1.10816]
[1756821608402,0.06858088,111400.0,111390.0,1.65354744]
[1756821608803,0.004,111400.0,111390.0,1.10816]
[1756821609007,0.004,111400.0,111390.0,1.56388195]
[1756821609207,0.20505,111400.0,111390.0,0.36090011]
[1756821609407,0.001,111400.0,111390.0,1.28850195]
[1756821609608,0.005,111400.0,111390.0,0.94850195]
[1756821609802,0.06958088,111400.0,111390.0,0.15208011]
[1756821610006,0.005,111400.0,111390.0,1.53850195]
[1756821610201,0.06958989,111400.0,111390.0,1.53850195]
[1756821610403,0.005,111400.0,111390.0,1.53850195]
[1756821610607,0.005,111400.0,111390.0,1.62826775]
[1756821610810,0.06458989,111440.0,111420.0,0.0897413]
[1756821610999,0.06458989,111450.0,111430.0,1.17722184]
[1756821611199,0.06404494,111450.0,111440.0,0.3608]
[1756821611406,0.10157,111450.0,111440.0,0.36090011]
[1756821611606,0.02985,111450.0,111440.0,0.36090011]
[1756821611807,0.07371257,111460.0,111440.0,0.81652195]
[1756821612110,0.08371257,111460.0,111450.0,0.3608]
[1756821612306,0.01966763,111460.0,111450.0,0.36090011]
[1756821612615,0.01966763,111460.0,111450.0,0.81652195]
[1756821612909,0.01966763,111460.0,111450.0,0.36090011]
[1756821613316,0.02066763,111460.0,111450.0,0.36090011]
[1756821613613,0.02066763,111460.0,111450.0,0.92652195]
[1756821613914,0.01066763,111460.0,111450.0,0.69090011]
[1756821614215,0.01223105,111460.0,111450.0,0.36090011]
[1756821614401,0.01223105,111460.0,111450.0,0.72190011]
[1756821614608,0.78957289,111460.0,111450.0,0.47190011]
[1756821614808,0.08395105,111460.0,111450.0,0.47190011]
[1756821615113,0.78957289,111460.0,111450.0,0.47190011]
[1756821615311,0.01223105,111460.0,111450.0,0.47190011]
[1756821615607,1.14937289,111460.0,111450.0,0.00110011]
[1756821615808,0.69375105,111460.0,111450.0,0.00110011]
[1756821616003,0.33295105,111460.0,111450.0,0.00110011]
[1756821616505,0.07596752,111470.0,111450.0,0.36659593]
[1756821616705,0.26424752,111470.0,111460.0,0.36649582]
[1756821616911,0.79158936,111470.0,111460.0,0.36090011]
[1756821617103,1.04158936,111470.0,111460.0,0.00010011]
[1756821617303,0.94676752,111470.0,111460.0,0.00010011]
[1756821617508,0.10157,111450.0,111440.0,0.3608]
[1756821617912,0.38157,111450.0,111440.0,0.3608]
[1756821618118,0.03,111450.0,111440.0,0.36659582]
[1756821618313,0.0299,111450.0,111440.0,0.72659582]
[1756821618619,0.00424752,111470.0,111440.0,0.97649582]
[1756821618817,0.31596752,111470.0,111460.0,0.3608]
[1756821619006,0.07172,111460.0,111440.0,0.07791]
[1756821619215,0.08172,111460.0,111440.0,0.08360582]
[1756821619517,0.07172,111440.0,111410.0,0.3608]
[1756821619813,0.43252,111430.0,111410.0,0.36360582]
[1756821620210,0.43252,111430.0,111410.0,0.28569582]
[1756821620410,0.43208345,111430.0,111420.0,0.07791]
[1756821620610,0.43208345,111430.0,111410.0,0.08360582]
[1756821620816,0.43252,111430.0,111410.0,0.73058869]
[1756821621112,0.43252,111430.0,111410.0,0.26791]
[1756821621515,0.43252,111430.0,111410.0,0.27460582]
[1756821621709,0.07172,111420.0,111410.0,0.00669582]
[1756821621915,0.70252,111420.0,111410.0,0.001]
[1756821622113,0.02,111420.0,111410.0,0.44540582]
[1756821622320,0.02,111420.0,111410.0,1.62213879]
[1756821622515,0.82203039,111470.0,111430.0,0.07791]
[1756821622722,0.07172,111450.0,111430.0,0.3608]
[1756821622912,0.02,111450.0,111440.0,0.43871]
[1756821623222,0.09172,111450.0,111440.0,0.43871]
[1756821623421,0.02,111450.0,111440.0,0.43871]
[1756821623621,0.02,111450.0,111440.0,0.3608]
[1756821623622,0.54870287,111450.0,111440.0,0.3608]
[1756821623823,0.02,111450.0,111440.0,0.43871]
[1756821624028,0.021,111450.0,111440.0,0.43871]
[1756821624326,0.023,111450.0,111440.0,0.43871]
[1756821624514,0.023,111450.0,111440.0,1.14569287]
[1756821624715,0.023,111450.0,111440.0,1.51569287]
[1756821624918,0.021,111450.0,111440.0,1.23541887]
[1756821625116,0.43257179,111490.0,111440.0,1.23541887]
[1756821625117,0.45698287,111490.0,111470.0,0.07791]
[1756821625322,0.45698287,111490.0,111480.0,0.3361476]
[1756821625323,0.31,111490.0,111480.0,0.3361476]
[1756821625529,0.76698287,111490.0,111470.0,0.3608]
[1756821625825,0.70698287,111480.0,111470.0,0.36528]
[1756821626033,0.12,111480.0,111470.0,0.36528]
[1756821626527,1.06698287,111480.0,111470.0,0.36528]
[1756821626715,0.61,111480.0,111470.0,0.36528]
[1756821626913,1.06698287,111480.0,111470.0,0.36528]
[1756821627122,0.61,111480.0,111470.0,0.36528]
[1756821627527,0.61,111480.0,111470.0,0.00448]
[1756821627528,1.06698287,111480.0,111470.0,0.00448]
[1756821627726,0.61,111480.0,111470.0,0.00448]
[1756821627918,1.06898287,111480.0,111470.0,0.00448]
[1756821628120,1.88676574,111480.0,111470.0,0.00448]
[1756821628316,1.98708246,111480.0,111450.0,0.3608]
[1756821628626,1.98708246,111480.0,111440.0,0.3608]
[1756821628627,0.45698287,111460.0,111430.0,0.3608]
[1756821628825,0.45698287,111440.0,111430.0,0.3608]
[1756821629022,0.50698287,111440.0,111420.0,0.3608]
[1756821629216,0.05,111440.0,111430.0,0.3608]
[1756821629422,0.05,111440.0,111420.0,0.3608]
[1756821629423,0.75698287,111440.0,111420.0,0.3608]
[1756821629725,0.45698287,111430.0,111420.0,0.3608]
[1756821629936,0.46698287,111430.0,111420.0,0.3608]
[1756821630638,0.26,111430.0,111420.0,0.3608]
[1756821630847,0.01,111430.0,111420.0,0.44071]
[1756821631345,0.01,111430.0,111420.0,1.15069287]
[1756821631532,0.01,111430.0,111420.0,1.47069287]
[1756821631844,0.45698287,111460.0,111440.0,0.01]
[1756821632142,0.11373862,111520.0,111450.0,0.46744]
[1756821632143,0.3608,111500.0,111450.0,0.46744]
[1756821632341,0.45698287,111490.0,111470.0,0.3608]
[1756821632535,0.82698287,111490.0,111480.0,0.3608]
[1756821632741,0.37,111490.0,111480.0,0.3608]
[1756821633045,0.07172,111530.0,111490.0,0.08791]
[1756821633236,0.32172,111530.0,111520.0,0.7216]
[1756821633437,0.25172,111530.0,111520.0,0.7216]
[1756821633639,0.70870287,111530.0,111510.0,0.3608]
[1756821633841,0.25172,111530.0,111520.0,0.3608]
[1756821634037,0.25172,111530.0,111510.0,0.3608]
[1756821634038,0.07172,111520.0,111510.0,0.3608]
[1756821634842,0.07172,111520.0,111500.0,0.43871]
[1756821634843,0.07172,111510.0,111500.0,0.3608]
[1756821635034,0.53870287,111510.0,111500.0,0.3608]
[1756821635235,0.08172,111510.0,111500.0,0.3608]
[1756821635634,0.78870287,111510.0,111500.0,0.3608]
[1756821635941,0.39731,111510.0,111500.0,0.3608]
[1756821636145,0.13731,111510.0,111500.0,0.3608]
[1756821636349,0.03,111510.0,111500.0,1.19124287]
[1756821636643,0.03,111510.0,111500.0,0.78058]
[1756821636848,0.03,111510.0,111500.0,1.56756287]
[1756821637039,0.11284148,111530.0,111510.0,0.11346]
[1756821637342,0.67713435,111560.0,111520.0,2.14542287]
[1756821637642,0.14731,111560.0,111550.0,0.3608]
[1756821638038,0.90429287,111560.0,111550.0,0.3608]
[1756821638239,0.11284148,111580.0,111550.0,0.3608]
[1756821638437,0.11284148,111560.0,111550.0,1.34612]
[1756821638641,0.56429287,111580.0,111550.0,1.68772]
[1756821638843,0.15731,111580.0,111570.0,0.3608]
[1756821639049,0.61429287,111580.0,111570.0,0.3608]
[1756821639250,0.10731,111570.0,111560.0,0.3608]
[1756821639437,0.11284148,111580.0,111560.0,0.47426]
[1756821639641,0.69713435,111580.0,111570.0,0.3608]
[1756821639836,0.58429287,111580.0,111570.0,0.3608]
[1756821640145,0.12731,111580.0,111570.0,0.3608]
[1756821640346,0.02,111580.0,111570.0,0.47426]
[1756821640542,0.02,111580.0,111570.0,0.3608]
[1756821640543,0.47698287,111580.0,111570.0,0.3608]
[1756821640743,0.83429287,111580.0,111570.0,0.3608]
[1756821640945,1.13429287,111580.0,111560.0,0.3608]
[1756821641145,0.10731,111570.0,111560.0,0.3708]
[1756821641341,0.13731,111570.0,111560.0,0.3708]
[1756821641750,0.13731,111570.0,111560.0,0.48426]
[1756821641751,0.31,111570.0,111560.0,0.48426]
[1756821641944,0.02,111570.0,111560.0,0.48426]
[1756821642348,0.12731,111570.0,111560.0,0.3708]
[1756821642552,0.83429287,111570.0,111560.0,0.3608]
[1756821643049,0.83429287,111570.0,111550.0,0.3608]
[1756821643241,0.10731,111550.0,111540.0,1.41005]
[1756821643446,1.23144287,111550.0,111540.0,0.08301]
[1756821643643,1.11780657,111550.0,111510.0,0.3608]
[1756821643839,0.10731,111520.0,111510.0,0.5108]
[1756821644048,0.10731,111520.0,111510.0,0.3608]
[1756821644049,0.38,111520.0,111510.0,0.3608]
[1756821644243,0.12731,111520.0,111510.0,0.3608]
[1756821644443,0.02,111520.0,111510.0,0.47426]
[1756821644639,0.58429287,111520.0,111510.0,0.3608]
[1756821644843,0.58429287,111520.0,111500.0,0.3708]
[1756821644844,0.10731,111510.0,111500.0,0.3708]
[1756821645052,0.64240913,111510.0,111500.0,0.3708]
[1756821645256,1.18240913,111510.0,111500.0,0.3608]
[1756821645550,0.10731,111500.0,111490.0,0.44434]
[1756821645849,0.96240913,111500.0,111490.0,0.07354]
[1756821646052,1.28875913,111500.0,111490.0,0.07354]
[1756821646249,0.10731,111490.0,111470.0,0.08307]
[1756821646553,0.63240913,111480.0,111470.0,0.08307]
[1756821646745,0.12731,111480.0,111470.0,0.08307]
[1756821646945,0.65240913,111480.0,111470.0,0.08307]
[1756821647150,0.74642312,111480.0,111470.0,0.08307]
[1756821647350,0.65240913,111480.0,111470.0,0.44387]
[1756821647554,0.65240913,111480.0,111470.0,0.08307]
[1756821647851,1.33722312,111480.0,111470.0,0.08307]
[1756821648047,1.35642312,111480.0,111470.0,0.08307]
[1756821648247,0.20132399,111480.0,111470.0,0.08307]
[1756821648544,0.02,111480.0,111470.0,0.3608]
[1756821648746,0.54509913,111480.0,111470.0,0.3618]
[1756821648953,0.54509913,111480.0,111470.0,0.47526]
[1756821649157,0.02,111480.0,111470.0,0.47526]
[1756821649357,0.02,111480.0,111470.0,1.69674]
[1756821649957,0.52509913,111510.0,111480.0,0.12346]
[1756821650153,0.52509913,111500.0,111490.0,0.3608]
[1756821650360,0.37,111500.0,111480.0,0.37123616]
[1756821650654,0.10731,111490.0,111480.0,0.37123616]
[1756821650856,0.33731,111490.0,111480.0,0.00043616]
[1756821651157,1.57589744,111490.0,111470.0,0.002]
[1756821651354,1.57589744,111490.0,111460.0,0.15663]
[1756821651355,1.24320913,111480.0,111460.0,0.15663]
[1756821651552,0.99320913,111470.0,111450.0,0.00448]